bitfinex-derivatives/quotes_BTCF0:USTF0_20251229
["timestamp","ask_amount","ask_price","bid_price","bid_amount"]
[1766971830950,0.0113639,88068.0,88054.0,0.00017034]
[1766971831143,0.0113646,88063.0,88050.0,0.05692]
[1766971831549,0.0113641,88067.0,88050.0,0.05692]
[1766971832150,0.0113641,88067.0,88050.0,0.05709034]
[1766971834454,0.0113644,88065.0,88050.0,0.05709034]
[1766971835248,0.11796018,88074.0,88050.0,0.05709034]
[1766971835845,0.0113652,88059.0,88050.0,0.05692]
[1766971836041,0.0113633,88073.0,88043.0,0.00227163]
[1766971836042,0.0113654,88057.0,88043.0,0.05919163]
[1766971837558,0.0113651,88059.0,88043.0,0.05919163]
[1766971837762,0.0113647,88062.0,88043.0,0.05919163]
[1766971838257,0.0113651,88059.0,88043.0,0.00227163]
[1766971843555,0.0113657,88054.0,88041.0,0.05692]
[1766971843756,0.0113657,88054.0,88041.0,0.08692]
[1766971847462,0.0113657,88054.0,88041.0,0.03]
[1766971847663,0.00017034,88056.0,88041.0,0.03]
[1766971848460,0.0113659,88053.0,88041.0,0.03]
[1766971848660,0.0113659,88053.0,88034.0,0.05692]
[1766971848862,0.0113659,88053.0,88035.0,0.05692]
[1766971849159,0.05692,88054.0,88035.0,0.05692]
[1766971853257,0.05692,88054.0,88034.0,0.05692]
[1766971853658,0.05692,88054.0,88032.0,0.0113685]
[1766971853858,0.05692,88054.0,88033.0,0.05692]
[1766971857349,0.05692,88054.0,88036.0,0.0113679]
[1766971857562,0.05692,88054.0,88039.0,0.0113675]
[1766971857563,0.04192,88054.0,88039.0,0.0113675]
[1766971857763,0.09664,88055.0,88041.0,0.0113673]
[1766971858159,0.06104018,88063.0,88043.0,0.011367]
[1766971858366,0.05692,88062.0,88046.0,0.0113666]
[1766971858865,0.05692,88062.0,88043.0,0.09664]
[1766971859266,0.00017034,88061.0,88044.0,0.00017034]
[1766971861561,0.0113655,88056.0,88031.0,0.0113686]
[1766971861764,0.0113655,88056.0,88032.0,0.15356]
[1766971861970,0.0113658,88054.0,88033.0,0.05692]
[1766971862171,0.0113658,88054.0,88034.0,0.09664]
[1766971863069,0.0113653,88057.0,88034.0,0.09664]
[1766971863667,0.0113656,88055.0,88034.0,0.09664]
[1766971864165,0.05692,88054.0,88034.0,0.09664]
[1766971866569,0.0113659,88053.0,88034.0,0.09664]
[1766971866763,0.0113659,88053.0,88035.0,0.05692]
[1766971868673,0.0113659,88053.0,88025.0,0.0113694]
[1766971868674,0.0113659,88053.0,88034.0,0.05692]
[1766971872467,0.11796018,88054.0,88034.0,0.05692]
[1766971873076,0.06104018,88053.0,88034.0,0.05692]
[1766971873776,0.11796018,88054.0,88034.0,0.05692]
[1766971873978,0.0113663,88050.0,88034.0,0.05692]
[1766971875880,0.0113658,88053.0,88034.0,0.05692]
[1766971876372,0.21460018,88054.0,88034.0,0.05692]
[1766971876574,0.15356,88054.0,88032.0,0.05692]
[1766971876882,0.21460018,88054.0,88033.0,0.0113684]
[1766971877472,0.15356,88054.0,88033.0,0.0113684]
[1766971880474,0.10235148,88050.0,88033.0,0.0113684]
[1766971881083,0.16339166,88050.0,88033.0,0.0113684]
[1766971881384,0.10235148,88050.0,88033.0,0.0113684]
[1766971883679,0.06104018,88046.0,88033.0,0.0113684]
[1766971884584,0.06104018,88046.0,88032.0,0.05692]
[1766971887385,0.10235148,88050.0,88032.0,0.05692]
[1766971887386,0.11238166,88050.0,88033.0,0.0113684]
[1766971887585,0.10235148,88050.0,88033.0,0.0113684]
[1766971887787,0.10235148,88050.0,88032.0,0.05692]
[1766971889185,0.10235148,88050.0,88032.0,0.0682885]
[1766971889992,0.0113659,88053.0,88032.0,0.0682885]
[1766971890292,0.10235148,88050.0,88032.0,0.0682885]
[1766971893592,0.10235148,88050.0,88032.0,0.05692]
[1766971893891,0.11371768,88050.0,88032.0,0.05692]
[1766971894891,0.10235148,88050.0,88032.0,0.05692]
[1766971895085,0.21607026,88042.0,88023.0,0.05692]
[1766971895386,0.10235148,88033.0,88023.0,0.05692]
[1766971895591,0.00017034,88041.0,88023.0,0.05692]
[1766971895787,0.00017034,88041.0,88024.0,0.0130605]
[1766971895983,0.10235148,88034.0,88024.0,0.0130605]
[1766971896184,0.00017034,88041.0,88024.0,0.0130605]
[1766971896385,0.10235148,88034.0,88013.0,0.0022724]
[1766971896687,0.10235148,88028.0,88018.0,5.976e-05]
[1766971897291,0.10235148,88030.0,88018.0,5.976e-05]
[1766971899692,0.05692,88033.0,88018.0,5.976e-05]
[1766971899897,0.10235148,88030.0,88018.0,5.976e-05]
[1766971900998,0.05692,88033.0,88018.0,5.976e-05]
[1766971901199,0.10235148,88040.0,88018.0,0.01143006]
[1766971901397,0.15356,88039.0,88018.0,0.01143006]
[1766971901600,0.15356,88038.0,88018.0,0.01143006]
[1766971902104,0.15356,88038.0,88019.0,0.01136]
[1766971902896,0.1649278,88038.0,88019.0,0.01136]
[1766971903202,0.15356,88038.0,88019.0,0.01136]
[1766971905005,0.10235148,88030.0,88019.0,0.01136]
[1766971905501,0.10235148,88030.0,88013.0,0.0022724]
[1766971906600,9.881e-05,88029.0,88013.0,0.0022724]
[1766971907701,0.10235148,88023.0,88008.0,0.09664]
[1766971907909,9.881e-05,88029.0,87997.0,0.05696]
[1766971907910,0.10235148,88018.0,87997.0,0.05696]
[1766971908104,9.881e-05,88017.0,87997.0,0.05696]
[1766971908407,0.10235148,88010.0,87997.0,0.05696]
[1766971908612,0.10235148,88010.0,87997.0,0.068333]
[1766971909511,9.881e-05,88017.0,87997.0,0.068333]
[1766971909809,9.881e-05,88017.0,88000.0,0.0113727]
[1766971910007,0.10235148,88010.0,88000.0,0.0113727]
[1766971910199,9.881e-05,88017.0,88000.0,0.0113727]
[1766971910400,9.881e-05,88017.0,87999.0,0.05696]
[1766971911204,0.10235148,88010.0,87999.0,0.05696]
[1766971912703,9.881e-05,88017.0,87999.0,0.05696]
[1766971912909,0.10235148,88010.0,87999.0,0.05696]
[1766971913510,9.881e-05,88017.0,88000.0,0.0113726]
[1766971914696,9.881e-05,88017.0,87999.0,0.05696]
[1766971914906,0.05696,88018.0,88007.0,0.0113717]
[1766971915411,0.05696,88018.0,88003.0,0.0113722]
[1766971916799,0.10235148,88020.0,88003.0,0.0113722]
[1766971918020,0.05696,88022.0,88003.0,0.0113722]
[1766971918309,0.10235148,88020.0,88003.0,0.0113722]
[1766971919210,0.10235148,88020.0,88002.0,0.0113723]
[1766971921614,0.00017034,88024.0,88010.0,0.10235148]
[1766971921811,0.011368,88037.0,88016.0,0.0113705]
[1766971922013,0.05696,88037.0,88020.0,0.10235148]
[1766971922519,0.05696,88037.0,88020.0,0.15931148]
[1766971922713,0.05713044,88037.0,88024.0,0.0113695]
[1766971923108,0.00017044,88037.0,88024.0,0.0113695]
[1766971923310,0.09668,88041.0,88024.0,0.0113695]
[1766971923709,0.09668,88041.0,88020.0,0.15948192]
[1766971923710,0.0113669,88045.0,88020.0,0.15948192]
[1766971923910,0.10235148,88050.0,88032.0,0.0113685]
[1766971924125,0.05696,88049.0,88032.0,0.0113685]
[1766971925716,0.10252192,88050.0,88030.0,0.10235148]
[1766971926623,0.00017044,88050.0,88031.0,0.0113687]
[1766971927816,0.00017044,88050.0,88040.0,0.10235148]
[1766971928017,0.05696,88052.0,88040.0,0.10235148]
[1766971928823,0.05696,88058.0,88040.0,0.10235148]
[1766971929031,0.00017044,88058.0,88048.0,0.10235148]
[1766971929325,0.0683245,88064.0,88045.0,0.05696]
[1766971930214,0.00017044,88063.0,88045.0,0.05696]
[1766971930416,0.00017044,88063.0,88050.0,0.10235148]
[1766971930719,0.05696,88074.0,88053.0,0.0113658]
[1766971930923,0.01363406,88073.0,88054.0,0.05696]
[1766971931320,0.0113637,88070.0,88054.0,0.05696]
[1766971931521,0.11371518,88070.0,88054.0,0.05696]
[1766971931921,0.0113637,88070.0,88054.0,0.05696]
[1766971933616,0.06100172,88068.0,88054.0,0.05696]
[1766971934923,0.06100172,88070.0,88058.0,0.10235148]
[1766971935223,0.00017034,88071.0,88054.0,0.05696]
[1766971936817,0.0113637,88070.0,88054.0,0.05696]
[1766971938522,0.00017034,88071.0,88054.0,0.05696]
[1766971940829,0.01153384,88071.0,88054.0,0.05696]
[1766971942424,0.00017034,88071.0,88054.0,0.05696]
[1766971942928,0.06327258,88073.0,88058.0,0.0113652]
[1766971943124,0.13832615,88084.0,88065.0,0.0113643]
[1766971943324,0.05692,88084.0,88065.0,0.05692]
[1766971943920,0.0113631,88074.0,88066.0,0.00017034]
[1766971944126,0.05692,88084.0,88040.0,0.10228889]
[1766971944127,0.0113622,88082.0,88040.0,0.10228889]
[1766971944322,0.0113622,88082.0,88056.0,0.0113654]
[1766971944624,0.0113622,88082.0,88050.0,0.10228889]
[1766971944625,0.0113622,88082.0,88058.0,0.0113651]
[1766971945128,0.00017034,88079.0,88061.0,0.00017034]
[1766971947328,0.01153284,88079.0,88061.0,0.00017034]
[1766971948821,0.00017034,88079.0,88061.0,0.00017034]
[1766971950840,0.0113626,88078.0,88061.0,0.00017034]
[1766971951137,0.00017034,88079.0,88061.0,0.00017034]
[1766971956745,0.08140615,88094.0,88061.0,0.00017034]
[1766971956934,0.08140615,88096.0,88073.0,0.0113632]
[1766971957134,0.08140615,88097.0,88074.0,0.09664]
[1766971957348,0.0113604,88096.0,88074.0,0.09664]
[1766971957549,0.0113607,88093.0,88074.0,0.09664]
[1766971957740,0.00011281,88092.0,88074.0,0.09664]
[1766971957940,0.0113613,88088.0,88074.0,0.09664]
[1766971958849,0.0113613,88088.0,88071.0,0.05692]
[1766971960147,0.01147371,88092.0,88071.0,0.05692]
[1766971960348,0.00011281,88092.0,88071.0,0.05692]
[1766971960846,0.00227008,88103.0,88071.0,0.05692]
[1766971961542,0.00227008,88103.0,88077.0,0.0113626]
[1766971961749,0.00227008,88103.0,88086.0,0.0113615]
[1766971963751,0.06319354,88103.0,88086.0,0.0113615]
[1766971964249,0.00227008,88103.0,88086.0,0.0113615]
[1766971964843,0.00227008,88103.0,88089.0,0.0113611]
[1766971965039,0.000227,88106.0,88089.0,0.0113611]
[1766971965240,0.000227,88106.0,88085.0,0.05692]
[1766971973258,0.000227,88106.0,88086.0,0.0113615]
[1766971973761,0.06092346,88105.0,88086.0,0.0113615]
[1766971976662,0.07228256,88105.0,88085.0,0.05692]
[1766971977056,0.06092346,88104.0,88085.0,0.05692]
[1766971980464,0.0113579,88115.0,88093.0,0.0113606]
[1766971980764,0.15352,88115.0,88094.0,0.15352]
[1766971980969,0.15352,88115.0,88099.0,0.0113599]
[1766971981165,0.15352,88115.0,88102.0,0.0113594]
[1766971981663,0.00351252,88126.0,88105.0,0.0113591]
[1766971981869,0.0682767,88124.0,88104.0,0.05692]
[1766971982268,0.0113571,88121.0,88104.0,0.05692]
[1766971982863,0.05692,88124.0,88104.0,0.05692]
[1766971984365,0.05692,88124.0,88105.0,0.0113591]
[1766971984566,0.05692,88124.0,88104.0,0.05692]
[1766971984765,0.0113569,88123.0,88104.0,0.05692]
[1766971985070,0.05692,88124.0,88104.0,0.0682792]
[1766971985274,0.05692,88124.0,88107.0,0.0113588]
[1766971986473,0.05692,88124.0,88105.0,0.0966]
[1766971987376,0.05692,88124.0,88106.0,0.011359]
[1766971988887,0.05692,88124.0,88105.0,0.0966]
[1766971989085,0.0682767,88124.0,88105.0,0.0966]
[1766971990186,0.0682767,88124.0,88105.0,0.15348]
[1766971990187,0.0113572,88121.0,88105.0,0.15348]
[1766971991887,0.0113574,88119.0,88100.0,0.00017034]
[1766971995984,0.05692,88124.0,88100.0,0.00017034]
[1766971996289,0.0113576,88117.0,88095.0,0.15348]
[1766971997184,0.0113576,88117.0,88097.0,0.00017024]
[1766971997792,0.00016967,88121.0,88097.0,0.00017024]
[1766971997981,0.10228889,88120.0,88097.0,0.00017024]
[1766971999280,0.0113577,88116.0,88097.0,0.00017024]
[1766971999482,0.15348,88115.0,88097.0,0.00017024]
[1766972002590,0.1022122,88110.0,88097.0,0.00017024]
[1766972003798,0.15348,88115.0,88097.0,0.00017024]
[1766972003994,0.1022122,88110.0,88097.0,0.00017024]
[1766972004890,0.15348,88115.0,88097.0,0.00017024]
[1766972005096,0.1022122,88110.0,88097.0,0.00017024]
[1766972005397,0.0113581,88114.0,88097.0,0.00017024]
[1766972005593,0.1022122,88110.0,88097.0,0.00017024]
[1766972006401,0.0113581,88114.0,88097.0,0.00017024]
[1766972006590,0.1022122,88110.0,88097.0,0.00017024]
[1766972011804,0.15348,88115.0,88097.0,0.00017024]
[1766972011990,0.1022122,88110.0,88097.0,0.00017024]
[1766972022814,0.1022122,88110.0,88085.0,0.03066315]
[1766972022815,0.0113592,88105.0,88093.0,0.05688]
[1766972023024,0.1022122,88103.0,88092.0,0.05688]
[1766972023313,0.1022122,88102.0,88091.0,0.05688]
[1766972025017,0.00017024,88105.0,88091.0,0.05688]
[1766972025213,0.00017024,88105.0,88098.0,0.0113599]
[1766972025518,0.05688,88106.0,88094.0,0.0113604]
[1766972025712,0.1022122,88110.0,88094.0,0.0113604]
[1766972025913,0.1022122,88110.0,88091.0,0.05688]
[1766972026315,0.00017001,88109.0,88095.0,0.0113603]
[1766972028319,0.00017001,88109.0,88094.0,0.0113605]
[1766972030618,0.00017001,88109.0,88091.0,0.05688]
[1766972030619,0.06083587,88107.0,88091.0,0.05688]
[1766972030919,0.1022122,88101.0,88088.0,0.00017024]
[1766972031115,0.1022122,88101.0,88089.0,0.05688]
[1766972034912,0.05688,88107.0,88089.0,0.05688]
[1766972038220,0.1022122,88100.0,88089.0,0.05688]
[1766972038413,0.05688,88107.0,88089.0,0.05688]
[1766972038722,0.1022122,88100.0,88089.0,0.05688]
[1766972040024,0.05688,88107.0,88090.0,0.011361]
[1766972040218,0.05688,88107.0,88089.0,0.05688]
[1766972040920,0.05688,88107.0,88090.0,0.011361]
[1766972041223,0.05688,88107.0,88090.0,0.1022122]
[1766972041425,1e-08,88109.0,88097.0,0.1022122]
[1766972041616,0.06083587,88125.0,88112.0,0.0113582]
[1766972041822,0.05692,88124.0,88108.0,0.0113587]
[1766972042123,0.05692,88124.0,88106.0,0.05692]
[1766972042509,0.0682767,88124.0,88106.0,0.05709024]
[1766972042708,0.1022122,88120.0,88106.0,0.05709024]
[1766972043819,0.05692,88124.0,88106.0,0.06844914]
[1766972044007,0.1022122,88120.0,88106.0,0.06844914]
[1766972044213,0.1022122,88120.0,88106.0,0.05709024]
[1766972045323,0.05692,88124.0,88106.0,0.05709024]
[1766972045521,0.1022122,88120.0,88106.0,0.05709024]
[1766972048916,0.1022122,88120.0,88079.0,0.06377464]
[1766972048917,0.1022122,88116.0,88089.0,0.0113611]
[1766972049228,0.1022122,88110.0,88090.0,0.15344]
[1766972049615,0.05688,88115.0,88091.0,0.0113609]
[1766972049921,0.1022122,88110.0,88093.0,0.0113605]
[1766972050230,0.1022122,88110.0,88094.0,0.00017024]
[1766972052219,0.1022122,88104.0,88094.0,0.00017024]
[1766972052424,0.05688,88109.0,88093.0,0.05688]
[1766972056327,0.05688,88109.0,88093.0,0.0682407]
[1766972058831,0.05688,88109.0,88095.0,0.0113603]
[1766972061332,0.05688,88109.0,88093.0,0.05688]
[1766972061526,0.00017024,88112.0,88099.0,0.1022122]
[1766972061724,1.49e-06,88112.0,88099.0,0.1022122]
[1766972062424,1.49e-06,88112.0,88103.0,0.0113593]
[1766972064736,1.49e-06,88112.0,88102.0,0.05688]
[1766972066335,1.49e-06,88112.0,88102.0,0.0682394]
[1766972067730,1.49e-06,88112.0,88102.0,0.05688]
[1766972070840,1.49e-06,88112.0,88103.0,0.0113594]
[1766972071033,0.01032736,88116.0,88103.0,0.0113594]
[1766972071331,0.08140615,88124.0,88103.0,0.0113593]
[1766972071332,0.05688,88122.0,88103.0,0.0113593]
[1766972072034,0.00017024,88121.0,88103.0,0.0113593]
[1766972072729,0.00017024,88121.0,88102.0,0.05688]
[1766972073842,0.00017024,88121.0,88103.0,0.0113594]
[1766972075942,0.00017024,88121.0,88102.0,0.05688]
[1766972076731,0.0113573,88120.0,88102.0,0.05688]
[1766972078043,0.00017024,88121.0,88102.0,0.05688]
[1766972080759,0.01152734,88121.0,88102.0,0.05688]
[1766972085844,0.00017024,88121.0,88102.0,0.05688]
[1766972086742,0.01152734,88121.0,88102.0,0.05688]
[1766972088952,0.00017024,88121.0,88102.0,0.05688]
[1766972091753,0.23711546,88133.0,88102.0,0.05688]
[1766972091957,0.0113557,88132.0,88109.0,0.0113585]
[1766972092853,0.0113557,88132.0,88112.0,0.00017024]
[1766972095252,0.15570931,88133.0,88112.0,0.00017024]
[1766972096559,0.0113556,88132.0,88112.0,0.00017024]
[1766972100862,0.00226931,88133.0,88122.0,0.0113568]
[1766972101165,0.05688,88147.0,88128.0,0.0113561]
[1766972101750,0.09678689,88150.0,88131.0,0.0113558]
[1766972101964,0.10814029,88150.0,88132.0,0.00017024]
[1766972102360,0.01158029,88150.0,88132.0,0.00017024]
[1766972103468,0.00022689,88150.0,88132.0,0.00017024]
[1766972104852,0.0113535,88149.0,88132.0,0.00017024]
[1766972105769,0.00022689,88150.0,88132.0,0.00017024]
[1766972107071,0.05688,88162.0,88133.0,0.05688]
[1766972107566,0.05688,88162.0,88139.0,0.0113546]
[1766972107770,0.0113519,88161.0,88140.0,0.09656]
[1766972107959,0.05688,88162.0,88140.0,0.09656]
[1766972108160,0.0113521,88160.0,88140.0,0.09656]
[1766972108764,0.05688,88162.0,88140.0,0.09656]
[1766972108966,0.00226854,88163.0,88144.0,0.0113541]
[1766972109263,0.00226854,88163.0,88145.0,0.05688]
[1766972111573,0.00226854,88163.0,88146.0,0.0113538]
[1766972114074,0.05688,88178.0,88146.0,0.01304066]
[1766972114274,0.05688,88178.0,88145.0,0.05688]
[1766972114275,0.0113501,88175.0,88153.0,0.00017014]
[1766972114475,0.0113501,88175.0,88154.0,0.1079127]
[1766972115262,0.15344,88178.0,88154.0,0.09656]
[1766972115868,0.0113506,88172.0,88154.0,0.09656]
[1766972116078,0.0113506,88172.0,88155.0,0.05688]
[1766972116970,0.05688,88176.0,88155.0,0.05688]
[1766972117683,0.05688,88176.0,88146.0,0.05688]
[1766972118876,0.0001698,88170.0,88152.0,0.00017014]
[1766972119180,0.0113522,88159.0,88146.0,0.05688]
[1766972119373,0.0113526,88156.0,88146.0,0.05688]
[1766972119571,0.0113526,88156.0,88141.0,0.05688]
[1766972119774,0.0113528,88154.0,88141.0,0.05688]
[1766972120170,0.0113528,88154.0,88140.0,0.09652]
[1766972120171,0.0113528,88154.0,88139.0,0.00017014]
[1766972121576,0.00017014,88156.0,88139.0,0.00017014]
[1766972121984,0.0113528,88155.0,88139.0,0.00017014]
[1766972125379,0.10210675,88150.0,88139.0,4e-08]
[1766972125579,0.10210675,88150.0,88130.0,0.05688]
[1766972126477,0.10210675,88150.0,88133.0,0.00226931]
[1766972126785,0.10210675,88150.0,88129.0,0.09652]
[1766972126786,0.0113552,88136.0,88121.0,0.09652]
[1766972126981,0.10210675,88131.0,88118.0,0.05688]
[1766972127374,0.10210675,88131.0,88110.0,0.13260777]
[1766972127375,0.10210675,88128.0,88110.0,0.05688]
[1766972127772,0.10227689,88128.0,88110.0,0.05705014]
[1766972128286,0.10227689,88128.0,88110.0,0.15915689]
[1766972128684,0.10227689,88128.0,88110.0,0.05705014]
[1766972130085,0.00017014,88128.0,88110.0,0.05705014]
[1766972131880,0.10210675,88120.0,88110.0,0.05705014]
[1766972132080,0.2042135,88120.0,88109.0,0.09652]
[1766972132286,0.0113573,88119.0,88104.0,0.05688]
[1766972132584,0.2042135,88120.0,88097.0,0.05688]
[1766972132585,0.10210675,88113.0,88097.0,0.05688]
[1766972132786,0.10210675,88110.0,88097.0,0.05688]
[1766972134476,0.0113579,88115.0,88097.0,0.05688]
[1766972134689,0.10210675,88110.0,88097.0,0.05688]
[1766972134992,0.11346525,88110.0,88097.0,0.05688]
[1766972135192,0.11346525,88110.0,88095.0,0.00017024]
[1766972135887,0.10210675,88105.0,88085.0,0.05688]
[1766972136086,0.05688,88110.0,88085.0,0.05688]
[1766972136087,0.0113598,88100.0,88085.0,0.05688]
[1766972136889,8.21e-05,88099.0,88085.0,0.05688]
[1766972143090,0.05692,88102.0,88089.0,0.10210675]
[1766972143298,0.15348,88105.0,88089.0,0.10210675]
[1766972144098,0.00017024,88106.0,88086.0,0.0113615]
[1766972144295,0.05692,88105.0,88086.0,0.0113615]
[1766972144488,0.05692,88105.0,88090.0,0.0113609]
[1766972145398,0.05692,88105.0,88090.0,0.11346765]
[1766972146190,0.05692,88105.0,88086.0,0.0113615]
[1766972146592,0.05692,88105.0,88089.0,0.0113611]
[1766972147401,0.05692,88105.0,88085.0,0.0682416]
[1766972147597,0.10210675,88100.0,88085.0,0.05688]
[1766972148101,0.05692,88105.0,88085.0,0.05688]
[1766972149193,0.05692,88105.0,88086.0,0.0113615]
[1766972149703,0.05692,88104.0,88090.0,0.10210675]
[1766972150203,0.05692,88104.0,88089.0,0.0113611]
[1766972150399,0.00017024,88106.0,88089.0,0.0113611]
[1766972150600,0.05692,88104.0,88089.0,0.0113611]
[1766972151992,0.05692,88108.0,88092.0,0.0113608]
[1766972154393,0.05692,88108.0,88085.0,0.05688]
[1766972154394,0.05692,88108.0,88089.0,0.0113612]
[1766972154590,0.05692,88108.0,88085.0,0.05688]
[1766972156005,0.05692,88108.0,88091.0,0.0113608]
[1766972156306,0.05692,88108.0,88087.0,0.0113613]
[1766972156508,0.0682788,88108.0,88087.0,0.0113613]
[1766972156708,0.05692,88108.0,88085.0,0.05688]
[1766972157007,0.05692,88108.0,88090.0,0.10210675]
[1766972157208,0.05692,88108.0,88091.0,0.0113608]
[1766972157610,0.05692,88108.0,88093.0,0.0113605]
[1766972157909,0.05692,88108.0,88100.0,0.0113596]
[1766972158098,0.00017024,88109.0,88100.0,0.0113596]
[1766972159406,0.00017024,88109.0,88101.0,0.011]
[1766972160703,0.06056253,88120.0,88105.0,0.011359]
[1766972160903,0.05692,88119.0,88105.0,0.011359]
[1766972161797,0.05692,88119.0,88103.0,0.00017024]
[1766972162004,0.0113575,88118.0,88103.0,0.00017024]
[1766972162207,0.05692,88119.0,88103.0,0.00017024]
[1766972163209,0.00017024,88121.0,88103.0,0.00017024]
[1766972163409,0.00017024,88121.0,88110.0,0.11346525]
[1766972163908,2.4e-07,88121.0,88113.0,0.0113581]
[1766972164413,2.4e-07,88121.0,88110.0,0.00569195]
[1766972166914,2.4e-07,88121.0,88111.0,0.0113583]
[1766972167208,2.4e-07,88121.0,88112.0,0.05692]
[1766972175319,2.4e-07,88121.0,88115.0,0.0113577]
[1766972175515,2.4e-07,88121.0,88112.0,0.0682781]
[1766972175720,2.4e-07,88121.0,88113.0,0.09656]
[1766972175916,2.4e-07,88121.0,88114.0,0.011358]
[1766972181914,0.08140615,88145.0,88127.0,0.0113562]
[1766972182114,0.08140615,88150.0,88133.0,0.0113555]
[1766972182316,0.15344,88149.0,88133.0,0.0113555]
[1766972182624,0.15344,88148.0,88133.0,0.0113555]
[1766972183015,0.15344,88148.0,88132.0,0.00017024]
[1766972183615,0.00017024,88149.0,88138.0,0.10210675]
[1766972184317,0.00017024,88149.0,88139.0,0.01099]
[1766972186522,0.01362024,88163.0,88139.0,0.01099]
[1766972186725,0.00226854,88163.0,88139.0,0.06787]
[1766972187021,0.00226854,88163.0,88139.0,0.0792247]
[1766972187022,0.15344,88162.0,88139.0,0.0792247]
[1766972187619,0.00016974,88159.0,88139.0,0.0792247]
[1766972187821,0.00016974,88159.0,88139.0,0.06787]
[1766972193625,0.0113523,88158.0,88139.0,0.06787]
[1766972194934,0.00016974,88159.0,88139.0,0.06787]
[1766972195231,0.0113533,88151.0,88139.0,0.06787]
[1766972196532,0.05688,88153.0,88139.0,0.06787]
[1766972205850,0.01152194,88159.0,88139.0,0.06787]
[1766972206057,0.05688,88158.0,88139.0,0.06787]
[1766972206255,0.09652,88157.0,88139.0,0.06787]
[1766972206652,0.09652,88157.0,88139.0,0.0792246]
[1766972206946,0.05688,88156.0,88139.0,0.0792246]
[1766972207256,0.09652,88155.0,88139.0,0.0792246]
[1766972207455,0.01152194,88159.0,88139.0,0.0792246]
[1766972207658,0.1534,88158.0,88139.0,0.0792246]
[1766972208650,0.05688,88157.0,88139.0,0.0792246]
[1766972208850,0.1534,88157.0,88139.0,0.0792246]
[1766972209058,0.1534,88157.0,88139.0,0.06787]
[1766972210365,0.011353,88153.0,88139.0,0.06787]
[1766972212360,0.05688,88153.0,88139.0,0.06787]
[1766972213165,0.05688,88153.0,88139.0,0.01156571]
[1766972213460,0.05688,88152.0,88139.0,0.01156571]
[1766972214658,0.05688,88152.0,88134.0,0.1647954]
[1766972216862,0.00016974,88159.0,88137.0,0.0113549]
[1766972217160,0.00016974,88159.0,88134.0,0.15344]
[1766972217358,0.05688,88158.0,88134.0,0.15344]
[1766972217555,0.00016974,88159.0,88149.0,0.0113534]
[1766972217754,0.05688,88159.0,88149.0,0.0113534]
[1766972217965,0.1534,88162.0,88149.0,0.0113534]
[1766972218466,0.1534,88162.0,88145.0,0.0113539]
[1766972218666,0.1534,88162.0,88143.0,0.0113542]
[1766972219562,0.1534,88162.0,88146.0,0.0113538]
[1766972220260,0.011352,88161.0,88142.0,0.05688]
[1766972224961,0.00226854,88163.0,88142.0,0.05688]
[1766972226569,0.0113518,88162.0,88142.0,0.05688]
[1766972228973,0.0113522,88159.0,88142.0,0.05688]
[1766972230474,0.05688,88160.0,88142.0,0.05688]
[1766972232374,0.0113522,88159.0,88142.0,0.05688]
[1766972232970,0.05688,88160.0,88132.0,0.00017024]
[1766972233170,0.05688,88160.0,88133.0,0.05688]
[1766972234365,0.011353,88153.0,88133.0,0.05688]
[1766972235276,0.0113533,88150.0,88133.0,0.05688]
[1766972238274,0.09652,88154.0,88133.0,0.05688]
[1766972238673,0.09652,88154.0,88134.0,0.0113554]
[1766972239979,0.09652,88154.0,88133.0,0.05688]
[1766972240178,0.011353,88153.0,88133.0,0.05688]
[1766972241079,0.09652,88154.0,88133.0,0.0682355]
[1766972241279,0.1078729,88154.0,88133.0,0.0682355]
[1766972242980,0.1078729,88154.0,88133.0,0.05688]
[1766972243186,0.0113532,88151.0,88133.0,0.05688]
[1766972243367,0.05688,88152.0,88133.0,0.05688]
[1766972244084,0.05688,88152.0,88134.0,0.0113553]
[1766972244484,0.05688,88152.0,88137.0,0.0113549]
[1766972244681,0.05688,88152.0,88133.0,0.0682354]
[1766972246083,0.05688,88155.0,88142.0,0.0113543]
[1766972250584,0.05688,88156.0,88145.0,0.10209671]
[1766972250784,0.1534,88159.0,88148.0,0.0113536]
[1766972250985,0.1534,88159.0,88149.0,0.10209671]
[1766972252785,0.00226854,88163.0,88149.0,0.10209671]
[1766972252986,0.05688,88162.0,88150.0,0.0113533]
[1766972253877,0.13828615,88162.0,88150.0,0.10209671]
[1766972255678,0.05688,88161.0,88150.0,0.10209671]
[1766972257584,0.08140615,88162.0,88150.0,0.10209671]
[1766972257785,0.08140615,88166.0,88150.0,0.10209671]
[1766972257992,0.0115,88166.0,88150.0,0.10209671]
[1766972258190,0.05688,88167.0,88150.0,0.10209671]
[1766972259292,0.05688,88167.0,88154.0,0.0113527]
[1766972260191,0.0682311,88167.0,88150.0,0.10209671]
[1766972261391,0.05688,88167.0,88149.0,0.06840364]
[1766972261595,0.05688,88167.0,88150.0,0.10209671]
[1766972263384,0.0113513,88166.0,88150.0,0.10209671]
[1766972263583,0.05688,88167.0,88150.0,0.10209671]
[1766972264495,0.10209671,88160.0,88149.0,2.4e-07]
[1766972264794,0.05688,88159.0,88141.0,0.05688]
[1766972264995,0.05688,88159.0,88137.0,0.09652]
[1766972264996,0.0113528,88154.0,88137.0,0.09652]
[1766972265192,0.0113528,88154.0,88130.0,0.10209671]
[1766972265193,0.0113532,88151.0,88135.0,0.05688]
[1766972265493,0.05688,88151.0,88135.0,0.05688]
[1766972268696,0.05688,88151.0,88140.0,0.10209671]
[1766972268893,0.05688,88151.0,88135.0,0.05688]
[1766972269195,0.05688,88151.0,88140.0,0.10209671]
[1766972273891,0.05688,88153.0,88140.0,0.10209671]
[1766972274092,0.02988,88153.0,88140.0,0.10209671]
[1766972274294,0.02988,88153.0,88137.0,0.0113549]
[1766972274497,0.02988,88153.0,88140.0,0.10209671]
[1766972276402,0.02988,88153.0,88141.0,0.0113544]
[1766972278202,0.05688,88168.0,88143.0,0.10209671]
[1766972278502,0.01304217,88172.0,88154.0,0.0113528]
[1766972278698,0.05688,88171.0,88160.0,0.10209671]
[1766972278899,0.05688,88171.0,88158.0,0.0113522]
[1766972279398,0.05688,88171.0,88155.0,0.0113526]
[1766972280003,0.05688,88171.0,88154.0,0.00017013]
[1766972280308,0.05688,88171.0,88154.0,0.01152283]
[1766972280496,0.05688,88170.0,88160.0,0.10209671]
[1766972280689,0.05688,88170.0,88154.0,0.01152283]
[1766972281298,0.05688,88170.0,88157.0,0.0113523]
[1766972281500,0.05088,88172.0,88160.0,0.20419342]
[1766972281704,0.09652,88175.0,88160.0,0.10209671]